lending/lending_fUSD_20250121
["ID","MTS","AMOUNT","RATE_DAILY","PERIOD"]
[349786757,1737429033858,-8056.2783,0.000219,2]
[349786758,1737429033868,-766.364,0.000219,2]
[349786759,1737429033878,-167.23157823,0.000219,2]
[349786760,1737429033888,-1040.2,0.000219,31]
[349786761,1737429033897,-1040.2,0.000219,31]
[349786762,1737429033908,-1040.2,0.000219,31]
[349786763,1737429033918,-1040.2,0.000219,31]
[349786764,1737429033928,-1040.2,0.000219,31]
[349786765,1737429033937,-1040.2,0.000219,31]
[349786766,1737429033947,-1040.2,0.000219,31]
[349786767,1737429033957,-1040.2,0.000219,31]
[349786768,1737429033967,-1040.2,0.000219,31]
[349786769,1737429033976,-1040.2,0.000219,31]
[349786770,1737429033986,-1040.2,0.000219,31]
[349786771,1737429033996,-1040.2,0.000219,31]
[349786772,1737429034006,-1040.2,0.000219,31]
[349786773,1737429034017,-1040.2,0.000219,31]
[349786774,1737429034027,-1040.2,0.000219,31]
[349786775,1737429034038,-1040.2,0.000219,31]
[349786776,1737429034048,-271.72972495,0.000219,2]
[349786777,1737429034060,-380.70933994,0.000219,2]
[349786778,1737429034069,-11059.71391561,0.000219,2]
[349786779,1737429034080,-150.0,0.00021918,2]
[349786780,1737429034089,-153.40837092,0.00021973,2]
[349786781,1737429034099,-500.75208374,0.00021973,2]
[349786782,1737429034110,-150.0,0.00021973,4]
[349786783,1737429034120,-500.61311292,0.00021973,2]
[349786784,1737429034129,-30000.0,0.0002198,3]
[349786785,1737429034139,-532.2668623,0.00021989,2]
[349786786,1737429034150,-500.0,0.00021989,2]
[349786787,1737429034161,-500.0,0.00021989,2]
[349786788,1737429034171,-500.0,0.00021989,2]
[349786789,1737429034182,-510.64113021,0.00021989,2]
[349786790,1737429034193,-517.57930133,0.00021989,2]
[349786791,1737429034204,-500.0,0.00021989,2]
[349786792,1737429034214,-500.0,0.00021989,2]
[349786793,1737429034225,-500.0,0.00021989,2]
[349786794,1737429034236,-500.0,0.00021989,2]
[349786795,1737429034246,-500.0,0.00021989,2]
[349786796,1737429034257,-577.54,0.00021989,2]
[349786797,1737429034267,-500.0,0.00021989,2]
[349786798,1737429034277,-500.0,0.00021989,2]
[349786799,1737429034287,-527.68056397,0.00021989,2]
[349786800,1737429034297,-519.76646253,0.00021989,2]
[349786801,1737429034307,-500.0,0.00021989,2]
[349786802,1737429034318,-626.71334353,0.00021989,2]
[349786803,1737429034328,-500.0,0.00021989,2]
[349786804,1737429034339,-500.0,0.00021989,2]
[349786805,1737429034350,-523.77303148,0.00021989,2]
[349786806,1737429034361,-500.0,0.00021989,2]
[349786807,1737429034371,-207.63022035,0.00021989,2]
[349786808,1737429034380,-516.93864431,0.00021989,2]
[349786809,1737429034390,-500.0,0.00021989,2]
[349786810,1737429034400,-521.26331726,0.00021989,2]
[349786811,1737429034409,-500.0,0.00021989,2]
[349786812,1737429034419,-515.63698826,0.00021989,2]
[349786813,1737429034429,-500.0,0.00021989,2]
[349786814,1737429034440,-512.86236518,0.00021989,2]
[349786815,1737429034450,-539.68303278,0.00021989,2]
[349786816,1737429034459,-500.0,0.00021989,2]
[349786817,1737429034469,-500.0,0.00021989,2]
[349786818,1737429034479,-2000.0,0.00021999,2]
[349786819,1737429034490,-2000.0,0.00021999,2]
[349786820,1737429034501,-2000.0,0.00021999,2]
[349786821,1737429034511,-2000.0,0.00021999,2]
[349786822,1737429034521,-2000.0,0.00021999,2]
[349786823,1737429034531,-2000.0,0.00021999,2]
[349786824,1737429034541,-500.0,0.00021999,2]
[349786825,1737429034551,-332.5799057,0.00021999,2]
[349786826,1737429034563,-429.37218654,0.00021999,2]
[349786827,1737429034572,-171.21512633,0.00021999,2]
[349786828,1737429034583,-291.15413197,0.00021999,2]
[349786829,1737429034593,-516.81115305,0.00021999,2]
[349786830,1737429034603,-500.0,0.00021999,2]
[349786831,1737429034613,-500.0,0.00021999,2]
[349786832,1737429034622,-505.53869558,0.00021999,2]
[349786833,1737429034632,-500.0,0.00021999,2]
[349786834,1737429034643,-500.0,0.00021999,2]
[349786835,1737429034652,-500.0,0.00021999,2]
[349786836,1737429034668,-500.0,0.00021999,2]
[349786837,1737429034677,-500.0,0.00021999,2]
[349786838,1737429034688,-500.0,0.00021999,2]
[349786839,1737429034697,-506.91065283,0.00021999,2]
[349786840,1737429034708,-500.0,0.00021999,2]
[349786841,1737429034718,-501.45469987,0.00021999,2]
[349786842,1737429034728,-500.0,0.00021999,2]
[349786843,1737429034739,-500.0,0.00021999,2]
[349786844,1737429034749,-502.7489489,0.00021999,2]
[349786845,1737429034759,-539.88204442,0.00021999,2]
[349786846,1737429034769,-511.02399426,0.00021999,2]
[349786847,1737429034780,-512.79683199,0.00021999,2]
[349786848,1737429034792,-500.0,0.00021999,2]
[349786849,1737429034802,-627.7174251,0.00021999,2]
[349786850,1737429034815,-502.90648469,0.00021999,2]
[349786851,1737429034826,-517.29758797,0.00021999,2]
[349786852,1737429034836,-508.15524694,0.00021999,2]
[349786853,1737429034845,-500.0,0.00021999,2]
[349786854,1737429034855,-513.5565062,0.00021999,2]
[349786855,1737429034864,-523.67398972,0.00021999,2]
[349786856,1737429034874,-509.27591214,0.00021999,2]
[349786857,1737429034883,-506.22100151,0.00021999,2]
[349786858,1737429034893,-500.0,0.00021999,2]
[349786859,1737429034902,-504.90046825,0.00021999,2]
[349786860,1737429034912,-506.99462568,0.00021999,2]
[349786861,1737429034921,-511.55272918,0.00021999,2]
[349786862,1737429034931,-500.0,0.00021999,2]
[349786863,1737429034942,-666.0,0.00021999,2]
[349786864,1737429034952,-506.12092519,0.00021999,2]
[349786865,1737429034962,-515.53077759,0.00021999,2]
[349786866,1737429034972,-510.36807206,0.00021999,2]
[349786867,1737429034982,-500.0,0.00021999,2]
[349786868,1737429034992,-405.90701827,0.00021999,2]
[349786869,1737429035002,-500.0,0.00021999,2]
[349786870,1737429035012,-500.0,0.00021999,2]
[349786871,1737429035021,-500.0,0.00021999,2]
[349786872,1737429035030,-500.0,0.00021999,2]
[349786873,1737429035040,-500.0,0.00021999,2]
[349786874,1737429035049,-500.0,0.00021999,2]
[349786875,1737429035061,-520.97446288,0.00021999,2]
[349786876,1737429035071,-666.0,0.00021999,2]
[349786877,1737429035080,-347.9534402,0.00021999,2]
[349786878,1737429035090,-150.0,0.00021999,2]
[349786879,1737429035099,-500.0,0.00021999,2]
[349786880,1737429035109,-500.0,0.00021999,2]
[349786881,1737429035119,-515.06812098,0.00021999,2]
[349786882,1737429035128,-519.02060703,0.00021999,2]
[349786883,1737429035138,-524.4798246,0.00021999,2]
[349786884,1737429035149,-535.51513515,0.00021999,2]
[349786885,1737429035159,-500.0,0.00021999,2]
[349786886,1737429035168,-550.55,0.00021999,2]
[349786887,1737429035177,-242.2868559,0.00021999,2]
[349786888,1737429035187,-500.0,0.00021999,2]
[349786889,1737429035197,-500.0,0.00021999,2]
[349786890,1737429035206,-500.0,0.00021999,2]
[349786891,1737429035216,-500.0,0.00021999,2]
[349786892,1737429035226,-500.0,0.00021999,2]
[349786893,1737429035236,-944.52,0.00021999,2]
[349786894,1737429035246,-915.8,0.00021999,2]
[349786895,1737429035255,-1031.44,0.00021999,2]
[349786896,1737429035265,-500.0,0.00021999,2]
[349786897,1737429035274,-643.65,0.00021999,2]
[349786898,1737429035283,-539.21910221,0.00021999,2]
[349786899,1737429035293,-500.0,0.00021999,2]
[349786900,1737429035302,-500.0,0.00021999,2]
[349786901,1737429035317,-520.99365167,0.00021999,2]
[349786902,1737429035326,-600.88287881,0.00021999,2]
[349786903,1737429035336,-485.0,0.00021999,2]
[349786904,1737429035346,-500.0,0.00021999,2]
[349786905,1737429035355,-563.65,0.00021999,2]
[349786906,1737429035364,-500.0,0.00021999,2]
[349786907,1737429035374,-500.0,0.00021999,2]
[349786908,1737429035383,-500.0,0.00021999,2]
[349786909,1737429035393,-500.0,0.00021999,2]
[349786910,1737429035402,-500.0,0.00021999,2]
[349786911,1737429035412,-500.0,0.00021999,2]
[349786912,1737429035422,-500.0,0.00021999,2]
[349786913,1737429035432,-2049.0,0.00021999,2]
[349786914,1737429035441,-1693.51306782,0.00021999,2]
[349786915,1737429035450,-220.09225564,0.00022,2]
[349786916,1737429035459,-852777.77294554,0.00022,2]
[349786917,1737429035650,-1678.431442,0.00022,2]
[349786918,1737429035673,-5326.21183776,0.00022,2]
[349786919,1737429035691,-253245.72564352,0.00022,2]
[349786924,1737429037667,-500.0,0.00021499,2]
[349786925,1737429037677,-500.0,0.00021499,2]
[349786926,1737429037688,-500.0,0.00021499,2]
[349786927,1737429037698,-500.0,0.00021773,2]
[349786928,1737429037707,-500.0,0.00021773,2]
[349786929,1737429037716,-11754.65478802,0.00022,2]
[349786930,1737429037728,-17292.3155,0.00022,2]
[349786931,1737429037775,-8288466.8980784,0.00022,2]
[349786932,1737429037785,-3966182.0021544,0.00022,2]
[349786933,1737429037797,-681.80805795,0.00022,2]
[349786934,1737429037811,-484.99755518,0.00022,2]
[349786992,1737429039931,-500.0,0.00021773,2]
[349786993,1737429039940,-575.76064398,0.000219,2]
[349786994,1737429039950,-516.09352422,0.000219,2]
[349786995,1737429039959,-151.11878276,0.000219,4]
[349786996,1737429039970,-1835.0,0.00021999,2]
[349786997,1737429039980,-17559.50788668,0.00022,2]
[349786998,1737429040147,-392.624,0.00022,2]
[349786999,1737429040167,-8575.8276865,0.00022,2]
[349787000,1737429040179,-1676.94092958,0.00022,2]
[349787001,1737429040190,-1922.65248067,0.00022,2]
[349787010,1737429042690,-543.72083096,0.00021499,2]
[349787011,1737429042700,-733.67916964,0.00022,2]
[349787012,1737429042849,-796.176,0.00022,2]
[349787013,1737429042861,-329.18788017,0.00022,2]
[349787024,1737429045514,-387.82,0.00021499,2]
[349787025,1737429045621,-138.73343196,0.00021499,2]
[349787026,1737429045630,-30563.26656804,0.00022,2]
[349787027,1737429045816,-811.50007888,0.00022,2]
[349787028,1737429045834,-8153.77805348,0.00022,2]
[349787029,1737429045845,-4836.62071588,0.00022,2]
[349787035,1737429287307,152.38,0.00010137,2]
[349787042,1737430030137,-158.0456663,0.00011912,2]
[349787048,1737430127328,260.5713,7e-05,2]
[349787055,1737430146167,-645.52767246,0.00011873,2]
[349787056,1737430146189,-2448.181165,0.00011912,2]
[349787057,1737430146209,-104453.04544371,0.00011973,2]
[349787058,1737430150093,-4487.801808,0.00011973,2]
[349787059,1737430154123,-16657.15274829,0.00011973,2]
[349787060,1737430154142,-204.59014576,0.00011973,2]
[349787061,1737430154162,-159.95486234,0.00011973,2]
[349787062,1737430154183,-500.42304367,0.00011973,2]
[349787063,1737430154204,-500.55376284,0.00011973,2]
[349787064,1737430154224,-306.42217223,0.00011973,2]
[349787065,1737430154244,-161.95993451,0.00011973,2]
[349787066,1737430154265,-454.24441694,0.00011973,2]
[349787067,1737430154286,-469.07037734,0.00011999,3]
[349787068,1737430154310,-20076.28602503,0.00012,2]
[349787069,1737430163074,-6943.143788,0.00012,2]
[349787071,1737430211260,170.07,0.00010137,2]
[349787085,1737430231773,-8293.72,0.00012,2]
[349787089,1737430231986,-363.36010393,0.00012,2]
[349787090,1737430232207,-383788.78757558,0.00012,2]
[349787133,1737430237726,-1399.46589341,0.00012,2]
[349787134,1737430237892,-1933420.18022389,0.00012,2]
[349787135,1737430237902,-11548.21509908,0.00012943,2]
[349787136,1737430237912,-11548.21509904,0.00013938,2]
[349787137,1737430237921,-250.0,0.00014732,2]
[349787138,1737430237931,-1135.86859188,0.00014732,2]
[349787139,1737430237940,-11548.21509904,0.00014933,2]
[349787140,1737430237950,-11548.21509904,0.00015929,2]
[349787141,1737430237959,-170.07,0.00016813,2]
[349787142,1737430237969,-11548.21509904,0.00016924,2]
[349787143,1737430237978,-152.38,0.00017184,2]
[349787144,1737430237988,-203.35776404,0.000173,2]
[349787145,1737430237998,-203.35776396,0.000173,2]
[349787146,1737430238008,-203.35776396,0.000173,2]
[349787147,1737430238020,-203.35776396,0.000173,2]
[349787148,1737430238030,-203.35776396,0.000173,2]
[349787149,1737430238040,-203.35776396,0.000173,2]
[349787150,1737430238050,-203.35776396,0.000173,2]
[349787151,1737430238060,-203.35776396,0.000173,2]
[349787152,1737430238071,-203.35776396,0.000173,2]
[349787153,1737430238080,-203.35776396,0.000173,2]
[349787154,1737430238090,-203.35776396,0.000173,2]
[349787155,1737430238099,-203.35776396,0.000173,2]
[349787156,1737430238109,-203.35776396,0.00017596,2]
[349787157,1737430238120,-11548.21509904,0.00017919,2]
[349787158,1737430238130,-203.35776396,0.00017987,2]
[349787159,1737430238140,-160.76198005,0.00018,2]
[349787160,1737430238149,-155.55,0.000183,2]
[349787161,1737430238159,-203.35776396,0.00018378,2]
[349787162,1737430238168,-500.0,0.0001863,2]
[349787163,1737430238178,-673.4,0.00018752,2]
[349787164,1737430238187,-203.35776396,0.0001877,2]
[349787165,1737430238198,-11548.21509904,0.00018914,2]
[349787166,1737430238208,-156.0,0.00019,2]
[349787167,1737430238218,-203.35776396,0.00019161,2]
[349787168,1737430238228,-155.061597,0.00019178,2]
[349787169,1737430238238,-160.689841,0.00019178,2]
[349787170,1737430238248,-161.962121,0.00019178,2]
[349787171,1737430238257,-154.922822,0.00019178,2]
[349787172,1737430238266,-150.230553,0.00019178,2]
[349787173,1737430238276,-150.230553,0.00019178,2]
[349787175,1737430238285,-162.090928,0.00019178,2]
[349787176,1737430238295,-500.0,0.00019178,2]
[349787177,1737430238304,-151.752331,0.00019178,2]
[349787178,1737430238313,-929.48,0.00019178,2]
[349787179,1737430238323,-500.0,0.00019178,2]
[349787180,1737430238333,-500.0,0.00019178,2]
[349787181,1737430238342,-641.42,0.00019178,2]
[349787182,1737430238351,-1169.76,0.00019178,2]
[349787183,1737430238362,-509.56728999,0.00019178,2]
[349787184,1737430238373,-746.99,0.00019178,2]
[349787185,1737430238383,-637.23,0.00019178,2]
[349787186,1737430238393,-159.984577,0.00019178,2]
[349787187,1737430238403,-500.0,0.00019178,2]
[349787188,1737430238412,-500.0,0.00019178,2]
[349787189,1737430238422,-500.0,0.00019178,2]
[349787190,1737430238431,-929.47,0.00019178,2]
[349787191,1737430238441,-1479.27,0.00019178,2]
[349787192,1737430238450,-155.005006,0.00019178,2]
[349787193,1737430238460,-155.005006,0.00019178,2]
[349787194,1737430238469,-500.0,0.00019178,2]
[349787195,1737430238478,-159.242588,0.00019178,2]
[349787196,1737430238488,-500.0,0.00019178,2]
[349787197,1737430238498,-1399.54,0.00019178,2]
[349787198,1737430238508,-500.0,0.00019178,2]
[349787199,1737430238517,-154.844845,0.00019178,2]
[349787200,1737430238526,-500.0,0.00019178,2]
[349787201,1737430238536,-500.0,0.00019178,2]
[349787202,1737430238546,-500.0,0.00019178,2]
[349787203,1737430238556,-500.0,0.00019178,2]
[349787204,1737430238565,-1343.64,0.00019178,2]
[349787205,1737430238575,-500.0,0.00019178,2]
[349787206,1737430238589,-720.57,0.00019178,2]
[349787207,1737430238599,-157.333708,0.00019178,2]
[349787208,1737430238609,-500.0,0.00019178,2]
[349787209,1737430238621,-157.320834,0.00019178,2]
[349787210,1737430238635,-500.0,0.00019178,2]
[349787211,1737430238644,-500.0,0.00019178,2]
[349787212,1737430238654,-500.0,0.00019178,2]
[349787213,1737430238664,-500.0,0.00019178,2]
[349787214,1737430238674,-500.0,0.00019178,2]
[349787215,1737430238684,-504.28,0.00019178,2]
[349787216,1737430238694,-158.451087,0.00019178,2]
[349787217,1737430238704,-587.99,0.00019178,2]
[349787218,1737430238714,-500.0,0.00019178,2]
[349787219,1737430238725,-500.0,0.00019178,2]
[349787220,1737430238735,-500.0,0.00019178,2]
[349787221,1737430238745,-500.0,0.00019178,2]
[349787222,1737430238754,-500.0,0.00019178,2]
[349787223,1737430238763,-500.0,0.00019178,2]
[349787224,1737430238773,-1793.02,0.00019178,2]
[349787225,1737430238783,-154.922822,0.00019188,2]
[349787226,1737430238793,-162.090928,0.00019188,2]
[349787227,1737430238803,-151.752331,0.00019188,2]
[349787228,1737430238812,-159.984577,0.00019188,2]
[349787229,1737430238822,-155.005006,0.00019188,2]
[349787230,1737430238832,-157.333708,0.00019188,2]
[349787231,1737430238841,-155.005006,0.00019255,2]
[349787232,1737430238851,-155.061597,0.00019452,2]
[349787233,1737430238860,-154.922822,0.00019452,2]
[349787234,1737430238871,-150.230553,0.00019452,2]
[349787235,1737430238881,-150.230553,0.00019452,2]
[349787236,1737430238890,-162.090928,0.00019452,2]
[349787237,1737430238899,-500.0,0.00019452,2]
[349787238,1737430238909,-151.752331,0.00019452,2]
[349787239,1737430238919,-929.48,0.00019452,2]
[349787240,1737430238928,-500.0,0.00019452,2]
[349787241,1737430238938,-500.0,0.00019452,2]
[349787242,1737430238947,-641.42,0.00019452,2]
[349787243,1737430238957,-1169.76,0.00019452,2]
[349787244,1737430238966,-746.99,0.00019452,2]
[349787245,1737430238975,-637.23,0.00019452,2]
[349787246,1737430238985,-159.984577,0.00019452,2]
[349787247,1737430238995,-500.0,0.00019452,2]
[349787248,1737430239006,-500.0,0.00019452,2]
[349787249,1737430239016,-500.0,0.00019452,2]
[349787250,1737430239026,-929.47,0.00019452,2]
[349787251,1737430239036,-1479.27,0.00019452,2]
[349787252,1737430239046,-155.005006,0.00019452,2]
[349787253,1737430239055,-155.005006,0.00019452,2]
[349787254,1737430239065,-500.0,0.00019452,2]
[349787255,1737430239075,-500.0,0.00019452,2]
[349787256,1737430239084,-1399.54,0.00019452,2]
[349787257,1737430239094,-154.844845,0.00019452,2]
[349787258,1737430239105,-500.0,0.00019452,2]
[349787259,1737430239116,-500.0,0.00019452,2]
[349787260,1737430239130,-500.0,0.00019452,2]
[349787261,1737430239140,-1343.64,0.00019452,2]
[349787262,1737430239150,-500.0,0.00019452,2]
[349787263,1737430239159,-720.57,0.00019452,2]
[349787264,1737430239169,-157.333708,0.00019452,2]
[349787265,1737430239178,-509.84236682,0.00019452,2]
[349787266,1737430239188,-500.0,0.00019452,2]
[349787267,1737430239197,-500.0,0.00019452,2]
[349787268,1737430239207,-500.0,0.00019452,2]
[349787269,1737430239217,-500.0,0.00019452,2]
[349787270,1737430239226,-504.28,0.00019452,2]
[349787271,1737430239236,-587.99,0.00019452,2]
[349787272,1737430239245,-500.0,0.00019452,2]
[349787273,1737430239255,-500.0,0.00019452,2]
[349787274,1737430239265,-500.0,0.00019452,2]
[349787275,1737430239274,-500.0,0.00019452,2]
[349787276,1737430239283,-500.0,0.00019452,2]
[349787277,1737430239293,-194.31058526,0.00019452,2]
[349787278,1737430239302,-1793.02,0.00019452,2]
[349787279,1737430239312,-753.5015692,0.000195,2]
[349787280,1737430239323,-203.35776396,0.00019552,2]
[349787281,1737430239332,-150.83,0.00019695,2]
[349787282,1737430239341,-151.752331,0.00019725,2]
[349787283,1737430239351,-155.005006,0.00019725,2]
[349787284,1737430239360,-157.333708,0.00019725,2]
[349787285,1737430239372,-154.922822,0.00019726,2]
[349787286,1737430239382,-150.230553,0.00019726,2]
[349787287,1737430239391,-162.090928,0.00019726,2]
[349787288,1737430239401,-500.0,0.00019726,2]
[349787289,1737430239410,-929.48,0.00019726,2]
[349787290,1737430239420,-500.0,0.00019726,2]
[349787291,1737430239430,-500.0,0.00019726,2]
[349787292,1737430239441,-641.42,0.00019726,2]
[349787293,1737430239454,-1169.76,0.00019726,2]
[349787294,1737430239464,-746.99,0.00019726,2]
[349787295,1737430239474,-637.23,0.00019726,2]
[349787296,1737430239484,-159.984577,0.00019726,2]
[349787297,1737430239494,-500.0,0.00019726,2]
[349787298,1737430239504,-500.0,0.00019726,2]
[349787299,1737430239514,-929.47,0.00019726,2]
[349787300,1737430239524,-1479.27,0.00019726,2]
[349787301,1737430239534,-155.005006,0.00019726,2]
[349787302,1737430239749,-500.0,0.00019726,2]
[349787304,1737430239758,-500.0,0.00019726,2]
[349787305,1737430239768,-1399.54,0.00019726,2]
[349787306,1737430239777,-154.844845,0.00019726,2]
[349787307,1737430239787,-500.0,0.00019726,2]
[349787308,1737430239796,-475.92933349,0.00019726,2]
[349787309,1737430239805,-500.0,0.00019726,2]
[349787310,1737430239815,-1343.64,0.00019726,2]
[349787311,1737430239824,-500.0,0.00019726,2]
[349787312,1737430239833,-720.57,0.00019726,2]
[349787313,1737430239842,-500.0,0.00019726,2]
[349787314,1737430239852,-443.21603795,0.00019726,2]
[349787315,1737430239861,-500.0,0.00019726,2]
[349787316,1737430239871,-504.28,0.00019726,2]
[349787317,1737430239879,-587.99,0.00019726,2]
[349787318,1737430239888,-500.0,0.00019726,2]
[349787319,1737430239898,-500.0,0.00019726,2]
[349787320,1737430239907,-500.0,0.00019726,2]
[349787321,1737430239917,-500.0,0.00019726,2]
[349787322,1737430239926,-1793.02,0.00019726,2]
[349787323,1737430239936,-151.752331,0.00019736,2]
[349787324,1737430239945,-155.005006,0.00019736,2]
[349787325,1737430239954,-157.333708,0.00019736,2]
[349787326,1737430239964,-839.88,0.00019764,2]
[349787327,1737430239974,-1430.76757568,0.000199,7]
[349787328,1737430239983,-11548.21509904,0.0001991,2]
[349787329,1737430239993,-203.35776396,0.00019943,2]
[349787330,1737430240003,-154.922822,0.00019997,2]
[349787331,1737430240012,-150.230553,0.00019997,2]
[349787332,1737430240025,-159.984577,0.00019997,2]
[349787333,1737430240035,-155.005006,0.00019997,2]
[349787334,1737430240045,-24970.25025289,0.0002,2]
[349787335,1737430240054,-155.061597,0.0002,2]
[349787336,1737430240064,-52904.38847641,0.0002,14]
[349787337,1737430240074,-154.922822,0.0002,2]
[349787338,1737430240084,-150.230553,0.0002,2]
[349787339,1737430240093,-162.090928,0.0002,2]
[349787340,1737430240103,-500.0,0.0002,2]
[349787341,1737430240114,-151.752331,0.0002,2]
[349787342,1737430240125,-929.48,0.0002,2]
[349787343,1737430240134,-500.0,0.0002,2]
[349787344,1737430240144,-500.0,0.0002,2]
[349787345,1737430240154,-641.42,0.0002,2]
[349787346,1737430240163,-1169.76,0.0002,2]
[349787347,1737430240172,-156.0,0.0002,2]
[349787348,1737430240181,-746.99,0.0002,2]
[349787349,1737430240190,-637.23,0.0002,2]
[349787350,1737430240199,-159.984577,0.0002,2]
[349787351,1737430240209,-500.0,0.0002,2]
[349787352,1737430240219,-500.0,0.0002,2]
[349787353,1737430240228,-929.47,0.0002,2]
[349787354,1737430240237,-1479.27,0.0002,2]
[349787355,1737430240246,-500.0,0.0002,2]
[349787356,1737430240256,-155.005006,0.0002,2]
[349787357,1737430240265,-155.005006,0.0002,2]
[349787359,1737430240274,-500.0,0.0002,2]
[349787361,1737430240284,-1399.54,0.0002,2]
[349787363,1737430240293,-154.844845,0.0002,2]
[349787365,1737430240302,-500.0,0.0002,2]
[349787367,1737430240311,-500.0,0.0002,2]
[349787369,1737430240320,-1343.64,0.0002,2]
[349787371,1737430240329,-444.19695238,0.0002,2]
[349787373,1737430240338,-720.57,0.0002,2]
[349787375,1737430240348,-157.333708,0.0002,2]
[349787377,1737430240358,-502.08679113,0.0002,2]
[349787379,1737430240367,-503.13798847,0.0002,2]
[349787381,1737430240377,-504.28,0.0002,2]
[349787383,1737430240386,-587.99,0.0002,2]
[349787385,1737430240396,-500.0,0.0002,2]
[349787387,1737430240405,-500.0,0.0002,2]
[349787389,1737430240414,-500.0,0.0002,2]
[349787391,1737430240423,-500.0,0.0002,2]
[349787393,1737430240432,-1793.02,0.0002,2]
[349787395,1737430240442,-150.230553,0.00020268,2]
[349787397,1737430240451,-162.090928,0.00020268,2]
[349787399,1737430240460,-155.005006,0.00020268,2]
[349787401,1737430240469,-151.752331,0.00020271,2]
[349787403,1737430240478,-157.333708,0.00020271,2]
[349787405,1737430240487,-155.061597,0.00020273,2]
[349787407,1737430240496,-154.922822,0.00020273,2]
[349787409,1737430240506,-150.230553,0.00020273,2]
[349787411,1737430240516,-162.090928,0.00020273,2]
[349787413,1737430240525,-500.0,0.00020273,2]
[349787415,1737430240534,-151.752331,0.00020273,2]
[349787417,1737430240543,-929.48,0.00020273,2]
[349787418,1737430240552,-500.0,0.00020273,2]
[349787420,1737430240561,-500.0,0.00020273,2]
[349787422,1737430240570,-641.42,0.00020273,2]
[349787424,1737430240579,-1169.76,0.00020273,2]
[349787426,1737430240589,-746.99,0.00020273,2]
[349787428,1737430240599,-637.23,0.00020273,2]
[349787430,1737430240609,-159.984577,0.00020273,2]
[349787432,1737430240619,-500.0,0.00020273,2]
[349787434,1737430240628,-500.0,0.00020273,2]
[349787436,1737430240638,-929.47,0.00020273,2]
[349787438,1737430240647,-1479.27,0.00020273,2]
[349787440,1737430240656,-500.0,0.00020273,2]
[349787442,1737430240666,-155.005006,0.00020273,2]
[349787444,1737430240676,-155.005006,0.00020273,2]
[349787446,1737430240684,-155.005006,0.00020273,2]
[349787448,1737430240693,-159.242588,0.00020273,2]
[349787450,1737430240704,-500.0,0.00020273,2]
[349787452,1737430240713,-1399.54,0.00020273,2]
[349787455,1737430240722,-154.844845,0.00020273,2]
[349787457,1737430240741,-500.0,0.00020273,2]
[349787459,1737430240751,-500.0,0.00020273,2]
[349787462,1737430240761,-1343.64,0.00020273,2]
[349787463,1737430240770,-720.57,0.00020273,2]
[349787465,1737430240779,-157.333708,0.00020273,2]
[349787467,1737430240789,-157.320834,0.00020273,2]
[349787469,1737430240798,-504.28,0.00020273,2]
[349787471,1737430240807,-587.99,0.00020273,2]
[349787473,1737430240816,-500.0,0.00020273,2]
[349787475,1737430240826,-500.0,0.00020273,2]
[349787477,1737430240835,-500.0,0.00020273,2]
[349787479,1737430240844,-640.49868728,0.00020273,2]